Cogmind - Beta 13 @@@ ROGUE MODE // 2024.04.20 @ 21:42:49 Player: Gold Spoon Result: Destroyed by G-50 Soldier with Heavy Laser Performance ------------- Evolutions (4) 2000 Regions Visited (10) 2000 Robots Destroyed (123) 615 Value Destroyed (4869) 4869 Prototype IDs (39) 780 Alien Tech Used (0) 0 Bonus (1260) 1260 TOTAL SCORE: 11524 Bonus ------- High Alert Combat Kills 195 Follower Combat Kills 281 Entered DSFs 500 Aligned with FarCom 300 Friendly Fire -16 Cogmind --------- Core Integrity 0/850 Matter 49/300 Energy 100/100 System Corruption 13% Temperature Cool (9) Movement Core (50) Location -6/Lower Caves Parts ------- > --- POWER (1) -------- (None) > --- PROPULSION (4) --- (None) > --- UTILITY (6) ------ (None) > --- WEAPON (4) ------- (None) > --- INVENTORY (5) ---- Angular Momentum Engine Cloaking Device Hacking Suite Improved Hacking Suite Peak State ------------ > --- POWER ------------ Reinforced Deuterium Engine > --- PROPULSION ------- Improved Carbon-fiber Leg Improved Carbon-fiber Leg Improved Carbon-fiber Leg Improved Carbon-fiber Leg > --- UTILITY ---------- Advanced Heat Sink Large Storage Unit Improved Signal Interpreter Hacking Suite Hacking Suite Hacking Suite > --- WEAPON ----------- Compact HERF Cannon Coil Gun Mini Assault Cannon Magnetic Acceleration Cannon > --- INVENTORY -------- Improved Carbon-fiber Leg Improved Carbon-fiber Leg Improved Carbon-fiber Leg Improved Heat Sink Heavy Armor Plating Improved Medium Armor Plating Powered Armor Hacking Suite Improved System Restoration Module Magnetic Acceleration Cannon Magnetic Acceleration Cannon Magnetic Acceleration Cannon [Rating: 66] Favorites ----------- Power Reinforced Deuterium Engine Engine Reinforced Deuterium Engine Power Core Light Nuclear Core Propulsion Improved Carbon-fiber Leg Treads Armored Treads Leg Improved Carbon-fiber Leg Wheel Wheel Utility Hacking Suite Device Improved Heat Sink Storage Large Storage Unit Processor Improved Signal Interpreter Hackware Hacking Suite Protection Light Armor Plating Weapon Assault Cannon Energy Gun Medium Laser Energy Cannon Compact HERF Cannon Ballistic Gun Heavy Assault Rifle Ballistic Cannon Assault Cannon Build | -11 -10 -10 -10 -9 -8 -8 -7 -7 -6 -6 ------- Run | Yrd Mat Min Exi Min Mat Sto Fac DSF Fac Low Slots Evolved 8 | . . . . . 4 . 2 . 2 . Power . | . . . . . . . . . . . Propulsion 2 | . . . . . 1 . . . 1 . Utility 4 | . . . . . 3 . 1 . . . Weapon 2 | . . . . . . . 1 . 1 . Parts Attached 100 | 6 8 3 . . 35 11 1 10 26 . Power 9 | 1 . 1 . . 3 1 . 2 1 . Engine 8 | 1 . 1 . . 3 1 . 1 1 . Core 1 | . . . . . . . . 1 . . Reactor . | . . . . . . . . . . . Propulsion 37 | 2 1 1 . . 13 4 . 6 10 . Treads 6 | . . . . . 2 . . 2 2 . Leg 27 | . . . . . 11 4 . 4 8 . Wheel 4 | 2 1 1 . . . . . . . . Hover . | . . . . . . . . . . . Flight . | . . . . . . . . . . . Utility 26 | 1 2 1 . . 12 2 . 1 7 . Device 6 | . . . . . 4 . . . 2 . Storage 3 | 1 1 . . . 1 . . . . . Processor 2 | . 1 1 . . . . . . . . Hackware 6 | . . . . . 1 2 . . 3 . Protection 9 | . . . . . 6 . . 1 2 . Artifact . | . . . . . . . . . . . Weapon 28 | 2 5 . . . 7 4 1 1 8 . Energy Gun 2 | 2 . . . . . . . . . . Energy Cannon 1 | . . . . . . . . . 1 . Ballistic Gun 10 | . 4 . . . 3 1 . 1 1 . Ballistic Cannon 15 | . 1 . . . 4 3 1 . 6 . Launcher . | . . . . . . . . . . . Special Weapon . | . . . . . . . . . . . Impact Weapon . | . . . . . . . . . . . Slashing Weapon . | . . . . . . . . . . . Piercing Weapon . | . . . . . . . . . . . Special Melee Weapon . | . . . . . . . . . . . Unidentified Prototypes 2 | . . . . . . 1 1 . . . Parts Lost 53 | . 2 1 . . 17 4 . 7 22 . Power 6 | . . . . . 2 1 . 2 1 . Propulsion 19 | . 1 1 . . 4 2 . 3 8 . Utility 13 | . . . . . 6 . . 1 6 . Weapon 15 | . 1 . . . 5 1 . 1 7 . Highest Loss Streak 11 | . 1 1 . . 8 2 . 4 11 . To Critical Strikes 2 | . . . . . . . . 1 1 . Average Slot Usage (%) 92 | . 96 98 100 100 93 96 88 87 86 20 Engine 8 | . 14 14 14 14 8 8 7 4 5 4 Leg 17 | . . . . . 23 25 23 16 20 16 Wheel 6 | . 28 26 28 28 1 . . . . . Device 6 | . . . . . 10 9 7 7 5 . Storage 8 | . 14 14 14 14 9 9 7 7 5 . Processor 8 | . 12 14 14 14 9 9 7 7 5 . Hackware 8 | . . . . . . 17 15 12 16 . Protection 3 | . . . . . 12 . . 2 . . Ballistic Gun 8 | . 24 14 14 14 8 6 7 6 2 . Ballistic Cannon 12 | . 1 14 14 14 9 11 11 15 18 . Naked Turns 72 | . . . . . . . . . 64 8 Heaviest Build 71 | 14 21 21 21 21 53 53 43 63 71 13 Greatest Support 72 | 26 26 26 26 26 54 51 48 54 72 48 Greatest Overweight (x) 15 | . 1 2 . . 8 2 . 2 15 . Average Overweight (x) . | . . . . . . . . . . . Largest Inventory Capacity 15 | 8 10 10 10 10 15 15 15 15 15 5 Average Capacity 12 | 6 9 10 10 10 10 15 15 15 14 5 Most Carried 15 | 4 9 10 10 10 10 9 7 10 15 4 Average Carried 8 | 1 6 9 10 9 7 7 6 5 11 3 Final Capacity 15 | 8 10 10 10 10 15 15 15 15 5 5 Final Carried 10 | 1 9 10 10 10 8 6 6 10 3 4 Class Distribution -------------------- 49% | Mutant 29% | Hacker-Skirmisher 11% | Hacker-Mutant 4% | Commander-Mutant Dominant Class ---------------- Mutant | -10/Materials Mutant | -10/Mines Mutant | -10/Exiles Mutant | -9/Mines Mutant | -8/Materials Hacker-Mutant | -8/Storage Hacker-Skirmisher | -7/Factory Hacker-Skirmisher | -7/DSF Hacker-Skirmisher | -6/Factory Mutant | -6/Lower Caves Resources | -11 -10 -10 -10 -9 -8 -8 -7 -7 -6 -6 ----------- Run | Yrd Mat Min Exi Min Mat Sto Fac DSF Fac Low Matter Collected 4285 | 203 335 159 . 8 1417 727 . 469 967 . Remotely 419 | . . . . . 419 . . . . . Salvage Created 4077 | . 406 191 . . 1549 604 . 310 1017 . Parts 241 | . 36 22 . . 98 33 . 9 43 . Haulers Intercepted 3 | . . . . . 3 . . . . . Recyclers Shooed . | . . . . . . . . . . . Parts Field Recycled . | . . . . . . . . . . . Retrieved Matter . | . . . . . . . . . . . Parts Self-Destructed . | . . . . . . . . . . . Prevented . | . . . . . . . . . . . Kills | -11 -10 -10 -10 -9 -8 -8 -7 -7 -6 -6 ------- Run | Yrd Mat Min Exi Min Mat Sto Fac DSF Fac Low Combat Hostiles Destroyed 104 | . 11 9 . . 35 14 . 8 27 . Melee 2 | . . . . . . . . . 2 . Guns 34 | . 8 5 . . 17 3 . . 1 . Cannons 59 | . . 4 . . 18 11 . 7 19 . AOE 8 | . 3 . . . . . . . 5 . Classes Destroyed 15 | . 4 . . . 6 1 . 2 2 . Worker 2 | . . . . . 2 . . . . . Builder 2 | . 1 . . . 1 . . . . . Hauler 3 | . . . . . 3 . . . . . Operator 4 | . . . . . 3 . . . 1 . Watcher 8 | . 3 . . . 4 1 . . . . Swarmer 17 | . 2 5 . . 8 . . . 2 . Saboteur 1 | . . . . . . . . . 1 . Grunt 52 | . 9 4 . . 15 8 . 2 14 . Brawler 1 | . . . . . . 1 . . . . Duelist 3 | . . . . . 1 . . 1 1 . Sentry 18 | . . . . . 10 5 . . 3 . Specialist 2 | . . . . . . . . 2 . . Hunter 3 | . . . . . 1 . . 2 . . Programmer 6 | . . . . . . . . . 6 . Heavy 1 | . . . . . . . . 1 . . Best Kill Streak 7 | . 7 3 . . 6 3 . 3 4 . Combat Bots Only 5 | . 5 3 . . 4 2 . 3 3 . Max Kills in Single Turn 4 | . 4 1 . . 2 1 . 1 4 . Gunslinging 1 | . 1 . . . . . . . . . Exploded 3 | . 3 . . . . . . . 3 . Melee 1 | . . . . . . . . . 1 . Uniques/NPCs Destroyed . | . . . . . . . . . . . Combat | -11 -10 -10 -10 -9 -8 -8 -7 -7 -6 -6 -------- Run | Yrd Mat Min Exi Min Mat Sto Fac DSF Fac Low Hostile Shots Fired 809 | . 47 29 . . 267 47 . 94 274 51 Missed 230 | . 12 10 . . 63 18 . 17 92 18 Damage Taken 10177 | . 446 239 . . 3063 587 . 1632 3573 637 Core 1854 | . 119 61 . . 284 27 . 496 655 212 Absorbed by Shields . | . . . . . . . . . . . Regen/Repaired (Parts) 471 | . 79 . . . 206 186 . . . . Core Remaining (%) 50 | 100 . . . 28 . 43 . 29 . . Volleys Fired 350 | . 36 20 . . 145 63 . 31 55 . Largest 4 | . 2 2 . . 2 2 . 3 4 . Hottest 225 | . 46 58 . . 88 88 . 117 225 . Shots Fired 792 | . 70 40 . . 287 123 . 87 185 . Gun 334 | . 70 20 . . 155 40 . 25 24 . Cannon 458 | . . 20 . . 132 83 . 62 161 . Launcher . | . . . . . . . . . . . Special . | . . . . . . . . . . . Kinetic 777 | . 70 40 . . 287 123 . 87 170 . Thermal . | . . . . . . . . . . . Explosive . | . . . . . . . . . . . Electromagnetic 15 | . . . . . . . . . 15 . Robot Hit Streak 13 | . 13 9 . . 12 12 . 8 7 . Robot Miss Streak 8 | . 4 3 . . 8 7 . 6 5 . Penetration Max 1 | . . . . . 1 . . . . . Secondary Targets 4 | . 3 . . . 1 . . . . . Max Gunslinging Chain 1 | . 1 . . . 1 . . . . . Shots Hit Robots 448 | . 45 26 . . 171 66 . 50 90 . Core Hits 185 | . 17 10 . . 76 29 . 13 40 . Critical Kills 4 | . . 1 . . 2 . . . 1 . Critical Parts Destroyed 4 | . 1 . . . 2 . . 1 . . Critical Strikes 21 | . 1 1 . . 11 3 . 2 3 . Destroy 8 | . 1 1 . . 4 . . 1 1 . Blast 12 | . . . . . 7 3 . 1 1 . Corrupt 1 | . . . . . . . . . 1 . Melee Attacks . | . . . . . . . . . . . Impact . | . . . . . . . . . . . Slashing . | . . . . . . . . . . . Piercing . | . . . . . . . . . . . Sneak Attacks . | . . . . . . . . . . . Combat Hostiles . | . . . . . . . . . . . Follow-up Attacks . | . . . . . . . . . . . Damage Inflicted 11129 | . 1145 460 . . 3565 1490 . 1172 3297 . Guns 3639 | . 677 253 . . 1754 358 . 296 301 . Cannons 6297 | . . 207 . . 1811 1132 . 876 2271 . Explosions 1186 | . 468 . . . . . . . 718 . Melee . | . . . . . . . . . . . Ramming 7 | . . . . . . . . . 7 . Kinetic 9689 | . 677 460 . . 3565 1490 . 1172 2325 . Thermal 562 | . . . . . . . . . 562 . Explosive 624 | . 468 . . . . . . . 156 . Electromagnetic 247 | . . . . . . . . . 247 . Impact . | . . . . . . . . . . . Slashing . | . . . . . . . . . . . Piercing . | . . . . . . . . . . . Highest Corruption 20 | . . . . . . 9 . . 20 13 Average Corruption 11 | . . . . . . 8 . . 16 13 Corruption Purged 7 | . . . . . . . . . 7 . Corruption Blocked . | . . . . . . . . . . . Effects 32 | . . . . . . 19 . . 11 2 Message Errors 5 | . . . . . . 2 . . 3 . Matter Fused 10 | . . . . . . 6 . . 4 . Heat Flow Errors 2 | . . . . . . 2 . . . . Data Loss (minor) 8 | . . . . . . 3 . . 3 2 Data Loss (major) 1 | . . . . . . 1 . . . . Misfires 1 | . . . . . . 1 . . . . Alerts 3 | . . . . . . 3 . . . . Misdirections 1 | . . . . . . . . . 1 . Weapon Failures 1 | . . . . . . 1 . . . . Overload Shots . | . . . . . . . . . . . Overflow Damage 417 | . 126 10 . . . 4 . 42 235 . Projectiles 56 | . . 10 . . . 4 . 42 . . Explosions 361 | . 126 . . . . . . . 235 . Melee . | . . . . . . . . . . . Knockbacks 55 | . . 2 . . 19 5 . 11 18 . Impact . | . . . . . . . . . . . Kinetic 54 | . . 2 . . 19 5 . 10 18 . Secondary 1 | . . . . . . . . 1 . . Self-Inflicted Damage 546 | . 63 . . . . . . . 483 . Shots 7 | . 1 . . . . . . . 6 . Rammed . | . . . . . . . . . . . Targets Rammed 3 | . . . . . . . . . 3 . Kicked 2 | . . . . . . . . . 2 . Crushed 1 | . . . . . . . . . 1 . Highest Temperature 719 | . 10 42 . . 40 200 . 719 383 7 Average Temperature 86 | . 2 17 . . 11 55 . 208 94 5 Received Heat Transfer 3117 | . 183 123 . . 1233 270 . 306 651 351 Effects 10 | . . . . . . . . 9 1 . Shutdowns 3 | . . . . . . . . 2 1 . Interference 5 | . . . . . . . . 5 . . Damage (minor) 1 | . . . . . . . . 1 . . Damage (core) 1 | . . . . . . . . 1 . . Siege Activations . | . . . . . . . . . . . Robots Corrupted . | . . . . . . . . . . . Combat Hostiles . | . . . . . . . . . . . Parts Fried 2 | . . . . . . . . 1 1 . Impact Corruptions 1 | . . . . . . . . 1 . . Robots Melted . | . . . . . . . . . . . Combat Hostiles . | . . . . . . . . . . . Parts Melted 1 | . . . . . 1 . . . . . Heat Transferred 300 | . . . . . . . . . 300 . Parts Sabotaged 2 | . . . . . . . . . 2 . Parts Stolen . | . . . . . . . . . . . Parts Stripped . | . . . . . . . . . . . Power Chain Reactions . | . . . . . . . . . . . Alert | -11 -10 -10 -10 -9 -8 -8 -7 -7 -6 -6 ------- Run | Yrd Mat Min Exi Min Mat Sto Fac DSF Fac Low Peak Influence 585 | . 307 248 . . 473 445 74 175 585 . Initial 183 | . . . . . . 183 74 51 91 . Average 189 | . 96 80 . . 185 225 74 116 265 . Maximum Alert Level 2 | . 1 1 . . 2 2 . . 2 . Low Security (%) 65 | 100 80 97 . 100 67 51 100 100 50 . Level 1 19 | . 19 2 . . 25 37 . . 13 . Level 2 14 | . . . . . 7 11 . . 36 . Level 3 . | . . . . . . . . . . . Level 4 . | . . . . . . . . . . . Level 5 . | . . . . . . . . . . . High Security . | . . . . . . . . . . . Max Security . | . . . . . . . . . . . Sterilizations 1 | . . . . . . . . 1 . . Squads Dispatched 26 | . 2 . . . 6 2 . 2 14 . Investigation 11 | . 2 . . . 2 1 . . 6 . Extermination 5 | . . . . . . . . . 5 . Reinforcement 8 | . . . . . 3 1 . 2 2 . Assault 1 | . . . . . . . . . 1 . Garrison 1 | . . . . . 1 . . . . . Intercept . | . . . . . . . . . . . Searches Triggered . | . . . . . . . . . . . Construction Impeded . | . . . . . . . . . . . Haulers Reinforced . | . . . . . . . . . . . Active Scanning Responses . | . . . . . . . . . . . Cargo Convoy Interrupts . | . . . . . . . . . . . Stealth | -11 -10 -10 -10 -9 -8 -8 -7 -7 -6 -6 --------- Run | Yrd Mat Min Exi Min Mat Sto Fac DSF Fac Low Distress Signals 7 | . 3 . . . 3 1 . . . . Communications Jammed . | . . . . . . . . . . . Distress Signals . | . . . . . . . . . . . Times Spotted 153 | . 17 12 . . 49 22 . 10 39 4 Peak Tracking Total 6 | . 4 3 . . 5 4 . 4 6 4 Tactical Retreats 14 | . 1 . . . 3 1 . 2 7 . Traps | -11 -10 -10 -10 -9 -8 -8 -7 -7 -6 -6 ------- Run | Yrd Mat Min Exi Min Mat Sto Fac DSF Fac Low Traps Triggered 8 | . 1 . . . . 4 . . 3 . Indirectly . | . . . . . . . . . . . Trap Hack Attempts . | . . . . . . . . . . . Triggered . | . . . . . . . . . . . Disarmed 5 | . . . . . . 5 . . . . Reprogrammed 2 | . . . . . . . . . 2 . Reused 1 | . . . . . . . . . 1 . Traps Extracted . | . . . . . . . . . . . Installed . | . . . . . . . . . . . Triggered 1 | . . . . . . . . . 1 . Machines | -11 -10 -10 -10 -9 -8 -8 -7 -7 -6 -6 ---------- Run | Yrd Mat Min Exi Min Mat Sto Fac DSF Fac Low Machines Disabled 29 | . 2 1 . . 2 6 . 1 17 . Max in Single Turn 3 | . 2 1 . . 1 2 . 1 3 . Garrison Access 3 | . . . . . 1 . 1 . 1 . Machines Repaired . | . . . . . . . . . . . Machines Dismantled . | . . . . . . . . . . . Machines Sabotaged . | . . . . . . . . . . . Overloaded Fab Kills . | . . . . . . . . . . . Hacking | -11 -10 -10 -10 -9 -8 -8 -7 -7 -6 -6 --------- Run | Yrd Mat Min Exi Min Mat Sto Fac DSF Fac Low Machines Accessed 39 | . 8 1 2 . 5 9 2 . 12 . Terminals 26 | . 7 . . . 3 7 1 . 8 . Fabricators 2 | . . . . . . . . . 2 . Repair Stations 4 | . 1 . . . 1 2 . . . . Recycling Units . | . . . . . . . . . . . Scanalyzers 1 | . . . . . . . . . 1 . Garrison Access 3 | . . . . . 1 . 1 . 1 . Total Hacks 109 | . 23 1 8 . 19 21 2 . 35 . Successful 61 | . 9 1 8 . 9 14 2 . 18 . Failed 48 | . 14 . . . 10 7 . . 17 . Catastrophic 2 | . . . . . 2 . . . . . Database Lockouts . | . . . . . . . . . . . Manual 8 | . . . 1 . 4 1 . . 2 . Terminals 69 | . 21 . . . 7 14 1 . 26 . Fabricators 3 | . . . . . . . . . 3 . Repair Stations 18 | . 2 . . . 9 7 . . . . Recycling Units . | . . . . . . . . . . . Scanalyzers 2 | . . . . . . . . . 2 . Garrison Access 8 | . . . . . 3 . 1 . 4 . Terminal Hacks 42 | . 7 1 8 . 2 10 1 . 13 . Record 9 | . . . 7 . . . . . 2 . Part Schematic 1 | . . . . . . . . . 1 . Prototype ID Bank 9 | . 4 . . . 1 2 . . 2 . Open Door 4 | . . 1 . . . 3 . . . . Open DSF 1 | . . . . . . . 1 . . . Branch Access Points 1 | . . . . . . . . . 1 . Emergency Access Points 1 | . . . . . . . . . 1 . Alert Level 5 | . . . . . . 2 . . 3 . Unreport Threat 5 | . 1 . . . 1 2 . . 1 . Locate Traps 1 | . 1 . . . . . . . . . Disarm Traps 1 | . . . . . . 1 . . . . Reprogram Traps 1 | . . . . . . . . . 1 . Transport Status 1 | . 1 . . . . . . . . . Registered Prototypes 1 | . . . . . . . . . 1 . Derelict Proto ID Bank 1 | . . . 1 . . . . . . . Fabricator Hacks 2 | . . . . . . . . . 2 . Build 2 | . . . . . . . . . 2 . Repair Station Hacks 12 | . 2 . . . 6 4 . . . . Scan Component 6 | . 1 . . . 3 2 . . . . Repair 6 | . 1 . . . 3 2 . . . . Recycling Unit Hacks . | . . . . . . . . . . . Scanalyzer 2 | . . . . . . . . . 2 . Insert Component 1 | . . . . . . . . . 1 . Analyze 1 | . . . . . . . . . 1 . Garrison Access Hacks 3 | . . . . . 1 . 1 . 1 . Seal Access 3 | . . . . . 1 . 1 . 1 . Unauthorized Hacks . | . . . . . . . . . . . Terminals . | . . . . . . . . . . . Fabricators . | . . . . . . . . . . . Repair Stations . | . . . . . . . . . . . Recycling Units . | . . . . . . . . . . . Scanalyzers . | . . . . . . . . . . . Garrison Access . | . . . . . . . . . . . Data Cores Recovered . | . . . . . . . . . . . Used . | . . . . . . . . . . . Hacking Detections 28 | . 8 . . . 3 6 . . 11 . Full Trace Events 8 | . 1 . . . 2 . . . 5 . Feedback Events 1 | . . . . . . . . . 1 . Hackware Fried 1 | . . . . . . . . . 1 . Feedback Blocked . | . . . . . . . . . . . Robot Schematics Acquired . | . . . . . . . . . . . Robots Built . | . . . . . . . . . . . Authchips . | . . . . . . . . . . . Time . | . . . . . . . . . . . Total Robot Build Rating . | . . . . . . . . . . . Part Schematics Acquired 2 | . . . . . . . . . 2 . Parts Built 1 | . . . . . . . . . 1 . Authchips . | . . . . . . . . . . . Time 256 | . . . . . . . . . 256 . Total Part Build Rating 8 | . . . . . . . . . 8 . Parts Repaired 6 | . 1 . . . 3 2 . . . . Time 197 | . 32 . . . 108 57 . . . . Parts Recycled . | . . . . . . . . . . . Recycled Matter . | . . . . . . . . . . . Retrieved Matter . | . . . . . . . . . . . Retrieved Components . | . . . . . . . . . . . Parts Scanalyzed 1 | . . . . . . . . . 1 . Part Schematics Acquired 1 | . . . . . . . . . 1 . Parts Damaged . | . . . . . . . . . . . Bothacking | -11 -10 -10 -10 -9 -8 -8 -7 -7 -6 -6 ------------ Run | Yrd Mat Min Exi Min Mat Sto Fac DSF Fac Low Used RIF Installer . | . . . . . . . . . . . Robots Hacked . | . . . . . . . . . . . Non-combat . | . . . . . . . . . . . Combat . | . . . . . . . . . . . Robot Hacks Applied . | . . . . . . . . . . . Relay Couplers Released . | . . . . . . . . . . . Fabnet Peak Effective % . | . . . . . . . . . . . Robots Rewired . | . . . . . . . . . . . Allies Hacked . | . . . . . . . . . . . Hacks Repelled . | . . . . . . . . . . . Allies | -11 -10 -10 -10 -9 -8 -8 -7 -7 -6 -6 -------- Run | Yrd Mat Min Exi Min Mat Sto Fac DSF Fac Low Total Allies 13 | . . 3 . . . 10 . . . . Largest Group 10 | . . 3 . . . 10 4 4 . . Highest-Rated Group 173 | . . 40 . . . 173 61 61 . . Highest-Rated Ally 29 | . . 16 . . . 29 16 16 . . Total Orders . | . . . . . . . . . . . Ally Attacks 86 | . . 15 . . . 62 . 9 . . Total Damage 1143 | . . 192 . . . 839 . 112 . . Kills 11 | . . 4 . . . 7 . . . . Allies Corrupted . | . . . . . . . . . . . Allies Melted . | . . . . . . . . . . . Intel | -11 -10 -10 -10 -9 -8 -8 -7 -7 -6 -6 ------- Run | Yrd Mat Min Exi Min Mat Sto Fac DSF Fac Low Robot Analysis Total . | . . . . . . . . . . . Derelict Logs Recovered 3 | . . 2 . 1 . . . . . . Drone Launches . | . . . . . . . . . . . Drone Recoveries . | . . . . . . . . . . . Exploration | -11 -10 -10 -10 -9 -8 -8 -7 -7 -6 -6 ------------- Run | Yrd Mat Min Exi Min Mat Sto Fac DSF Fac Low Turns Passed 9402 | 45 884 741 308 156 2421 1444 136 442 2774 51 Spaces Moved 5866 | 42 752 708 318 156 1242 794 104 175 1526 49 Core 214 | 12 . . . . 8 . . . 179 15 Treads 77 | . . . . . 16 . . 32 29 . Legs 3549 | . . . . . 1156 794 104 143 1318 34 Wheels 2026 | 30 752 708 318 156 62 . . . . . Hover . | . . . . . . . . . . . Flight . | . . . . . . . . . . . Fastest Speed 50 | 50 80 90 90 90 90 120 120 120 50 50 Average Speed 117 | 76 92 92 90 90 122 128 120 174 133 98 Slowest Speed 800 | 90 95 110 90 90 450 260 120 260 800 120 Overloaded Moves . | . . . . . . . . . . . Propulsion Burnouts . | . . . . . . . . . . . Robots Hopped . | . . . . . . . . . . . Cave-ins Triggered 1 | . . . . . . 1 . . . . Exploration Rate (%) 55 | 5 99 98 61 37 82 96 2 92 31 6 Regions Visited 10 Branch Regions 5 Pre-discovered Areas 2 | . . 2 . . . . . . . . Known Exits Taken 8 | . 1 1 1 1 1 1 1 . 1 . Unknown Exits Taken 1 | 1 . . . . . . . . . . Scrap Searched 3 | . . 2 . 1 . . . . . . Spaces Dug 4 | . . . . . . 4 . . . . Terrain Destroyed 219 | . 12 . . . 22 27 . . 158 . Melee . | . . . . . . . . . . . Projectile 71 | . . . . . 22 17 . . 32 . AOE 148 | . 12 . . . . 10 . . 126 . Terrain Rammed . | . . . . . . . . . . . Walls Destroyed . | . . . . . . . . . . . Machines Disabled . | . . . . . . . . . . . Actions | -11 -10 -10 -10 -9 -8 -8 -7 -7 -6 -6 --------- Run | Yrd Mat Min Exi Min Mat Sto Fac DSF Fac Low Total 7729 | 54 871 758 339 171 1863 1109 115 252 2144 53 Wait 1259 | . 54 19 22 14 388 234 10 19 499 . Move 5856 | 41 751 707 317 155 1241 793 103 174 1525 49 Hop . | . . . . . . . . . . . Pick Up 116 | 7 17 6 . 1 37 7 1 15 25 . Fast Attach . | . . . . . . . . . . . Attach 86 | 6 6 2 . . 25 11 1 10 25 . Detach 3 | . . . . . . 1 . . 1 1 Swap 14 | . 2 1 . . 10 . . . 1 . Drop 41 | . 5 3 . 1 17 . . 3 9 3 Fire 350 | . 36 20 . . 145 63 . 31 55 . Melee . | . . . . . . . . . . . Ram 1 | . . . . . . . . . 1 . Kick 2 | . . . . . . . . . 2 . Crush 1 | . . . . . . . . . 1 . Escape Stasis . | . . . . . . . . . . . Rewire . | . . . . . . . . . . . Trap . | . . . . . . . . . . . Miscellaneous . | . . . . . . . . . . . Route ------- -11/Scrapyard -10/Materials (discovered 4 exits: *Mat x3 / *Min) -10/Mines (discovered 3 exits: *Mat x2 / *Exi) -10/Exiles -9/Mines -8/Materials (discovered 4 exits: *Fac x2 / *Sto x2) -8/Storage -7/Factory -7/DSF -6/Factory (discovered 4 exits: *Fac x2 / *Low x2) -6/Lower Caves History --------- Turn | Location | Event 7 | -11/Scrapyard | Discovered new exit (range 16) 46 | -11/Scrapyard | Entered Materials 279 | -10/Materials | Discovered new exit (range 11) 293 | -10/Materials | Identified exit to Mines 311 | -10/Materials | Build established: Mutant 396 | -10/Materials | Discovered new exit (range 9) 405 | -10/Materials | Identified exit to Materials 528 | -10/Materials | Discovered exit to Materials (range 10) 619 | -10/Materials | Discovered exit to Materials (range 15) 769 | -10/Materials | Repaired Hvy. Assault Rifle 930 | -10/Materials | Entered Mines 933 | -10/Mines | Discovered exit to Materials (range 10) 973 | -10/Mines | Core integrity fell below 50% 997 | -10/Mines | Received a Rocket Launcher from a helpful Derelict 1028 | -10/Mines | Learned location of Storage (-8) 1061 | -10/Mines | Assisted by bots powering up and referring to "LRC-V3" 1124 | -10/Mines | Learned location of Zion (-7) 1376 | -10/Mines | Discovered exit to Materials (range 12) 1388 | -10/Mines | Met a Derelict who couldn't figure out how to use a Trap Extractor 1582 | -10/Mines | Deemed a non-threat by the Exiles lab entrance 1582 | -10/Mines | Discovered new exit (range 5) 1586 | -10/Mines | Identified exit to Exiles 1671 | -10/Mines | Entered Exiles 1695 | -10/Exiles | Met 8R-AWN 1710 | -10/Exiles | Met EX-HEX 1738 | -10/Exiles | Met EX-BIN 1749 | -10/Exiles | Aligned with FarCom system 1750 | -10/Exiles | Given EX-Vault access code 1771 | -10/Exiles | Opened EX-Vault 1807 | -10/Exiles | Warned to stay clear of 0b10 Research branches 1808 | -10/Exiles | Exiles lab attacked by MAIN.C 1892 | -10/Exiles | Discovered new exit (range 12) 1901 | -10/Exiles | Identified exit to Mines 1979 | -10/Exiles | Entered Mines 2061 | -9/Mines | Discovered new exit (range 9) 2067 | -9/Mines | A weapon hastily lodged in a ceiling crevice suddenly fell to the ground 2124 | -9/Mines | Identified exit to Materials 2135 | -9/Mines | Entered Materials 2135 | -8/Materials | Evolved 4 slots: Propulsion x1, Utility x3 2136 | -8/Materials | Identified exit to Storage 2237 | -8/Materials | Garrison activated, responded to threat 2370 | -8/Materials | Lost 8 parts (1p2n2u3w) 2891 | -8/Materials | Discovered new exit (range 4) 2893 | -8/Materials | Identified exit to Factory 3144 | -8/Materials | Repaired Battle Cannon 3184 | -8/Materials | Repaired Imp. Heat Sink 3224 | -8/Materials | Repaired Carbon-fiber Leg 3743 | -8/Materials | Discovered exit to Storage (range 5) 3856 | -8/Materials | Lost 5 parts (1p2u2w) 4130 | -8/Materials | Discovered exit to Factory (range 10) 4400 | -8/Materials | Core integrity fell below 50% 4556 | -8/Materials | Entered Storage 4888 | -8/Storage | Build established: Hacker-Mutant 5236 | -8/Storage | Discovered exit to Factory (range 14) 5414 | -8/Storage | Assisted by bots powering up and referring to "LRC-V3" 5445 | -8/Storage | Crushed by falling debris 5591 | -8/Storage | Repaired Assault Cannon 5708 | -8/Storage | Build established: Commander-Mutant 5763 | -8/Storage | Repaired Carbon-fiber Leg 5838 | -8/Storage | Lost 5 allies 6000 | -8/Storage | Entered Factory 6000 | -7/Factory | Accompanied by 4 allies 6000 | -7/Factory | Evolved 2 slots: Utility x1, Weapon x1 6003 | -7/Factory | Identified exit to DSF 6136 | -7/Factory | Entered DSF 6136 | -7/DSF | Accompanied by 4 allies 6156 | -7/DSF | Additional patrols routed to DSF 6216 | -7/DSF | Lost 4 allies 6286 | -7/DSF | Lost 4 parts (1p2n1w) 6351 | -7/DSF | Core integrity fell below 50% 6455 | -7/DSF | Sterilization system engaged 6475 | -7/DSF | Ambient heat levels rising (+10) 6490 | -7/DSF | Ambient heat levels rising (+10) 6505 | -7/DSF | Ambient heat levels rising (+10) 6520 | -7/DSF | Ambient heat levels rising (+10) 6535 | -7/DSF | Ambient heat levels rising (+10) 6539 | -7/DSF | Discovered new exit (range 16) 6550 | -7/DSF | Ambient heat levels rising (+10) 6565 | -7/DSF | Ambient heat levels rising (+10) 6578 | -7/DSF | Entered Factory 6578 | -6/Factory | Evolved 2 slots: Propulsion x1, Weapon x1 6640 | -6/Factory | Hacking Suite fried by hacking feedback 6910 | -6/Factory | Build established: Hacker-Skirmisher 7030 | -6/Factory | Discovered new exit (range 5) 7042 | -6/Factory | Identified exit to Factory 7148 | -6/Factory | Found Powered Armor 7172 | -6/Factory | Identified exit to Lower Caves 7336 | -6/Factory | Fabricated Com. HERF Cannon (x1) 8421 | -6/Factory | Discovered exit to Factory (range 7) 9028 | -6/Factory | First assault squad dispatched 9083 | -6/Factory | Core integrity fell below 50% 9085 | -6/Factory | System corruption reached 10% 9101 | -6/Factory | Released all parts (3) 9131 | -6/Factory | Lost 11 parts (1p2n5u3w) 9352 | -6/Factory | Entered Lower Caves 9358 | -6/Lower Caves | Build established: Mutant 9376 | -6/Lower Caves | Core integrity fell below 20% 9403 | -6/Lower Caves | Destroyed by G-50 Soldier with Heavy Laser Last Messages --------------- Slug penetrates Neutrino Reactor. K-01 Serf cleans the Matter Pump. Slug penetrates Neutrino Reactor. K-01 Serf cleans the Matter Pump. Slug penetrates Neutrino Reactor. Neutrino Reactor explodes. K-01 Serf cleans the Matter Pump. K-01 Serf collects debris. 7XPDCNHVEAOWBJ2DCJKB1CJ0 System corrupted: Matter fused (-8). LOCATION=LOWER CAVES GOAL=ESCAPE System corrupted: Component data lost. B-48 Gladiator suffers critical hit (Burn). Critical hit (Burn: +37). B-48 Gladiator heat short circuits Rnf. Deuterium Engine. System corrupted: Component data lost. Critical hit (Burn: +37). Dropped Arm. Leg. Map ----- +----------------------------------------------------+ | ?????????????????????????????????????????????????? | | ?????????????????????????????????????????????????? | | ?????????????????????????????????????????????????? | | ?????????????????????????????????????????????????? | | ?????????????????????????????????????????????????? | | ?????????????????????????????????????????????????? | | ?????????????????????????????????????????????????? | | ?????????????????????????????????????????????????? | | ?????????????????????????????????????????????????? | | ?????????????????????????????????????????????????? | | ?????????????????????????????????????????????????? | | ???????????????????????????????????#######???????? | | ???????????????????????????????????# ##??????? | | ????????????????????????????????????# ##?????? | | ?????????????????????????????????????# ##????? | | ??????????????????????????????????????# ###??? | | ??????????????????????????????????##### ##?? | | ??????????????????????????????##### #?? | | ?????????????????????????????## #?? | | ????????????????????????????## #?? | | ????????????????????????????# ### ##?? | | ???????????????????????????## g ##?## #??? | | ??????????????????# ??????## b= #??## #??? | | ???????????????????# ##### gg##??# #??? | | ???????????????????# ##??## ###??? | | ???????????????????## @ ##??# ##???? | | ????????????????????# ### ##?# #???? | | ????????????????????# #??## #### ##???? | | ????????????????????# ????# #### ###????? | | ????????????????????# ?????## #?# #??????? | | ????????????????????##???????## ### #??????? | | ??????????????????????????????# ## ##??????? | | ??????????????????????????????# ##### ##???????? | | ??????????????????????????????###???#####????????? | | ?????????????????????????????????????????????????? | | ?????????????????????????????????????????????????? | | ?????????????????????????????????????????????????? | | ?????????????????????????????????????????????????? | | ?????????????????????????????????????????????????? | | ?????????????????????????????????????????????????? | | ?????????????????????????????????????????????????? | | ?????????????????????????????????????????????????? | | ?????????????????????????????????????????????????? | | ?????????????????????????????????????????????????? | | ?????????????????????????????????????????????????? | | ?????????????????????????????????????????????????? | | ?????????????????????????????????????????????????? | | ?????????????????????????????????????????????????? | | ?????????????????????????????????????????????????? | | ?????????????????????????????????????????????????? | +----------------------------------------------------+ Best States ------------- Heat Dissipation 56 Energy Generation 18 Energy Capacity 300 Matter Stores 300 Matter Capacity 300 Sight Range 16 Terrain Scan Density 10 Armor Coverage 825 Evasion (%) 55 Recoil Reduction 2 Offensive Hacking 30 Item Schematics ----------------- Flexi-carbon Leg | -6/Factory | Hacked Imp. Hacking Suite | -6/Factory | Scanalyzed Robot Schematics ------------------ None Fabricated ------------ Com. HERF Cannon | x1 | -6/Factory | Preloaded Alien Tech Used ----------------- None Achievements -------------- Unlikely Earthworm Use The Force Challenges ------------ None Game ------ Seed BladeSpectralBoregun Manual? 0 Play Time 01:23:50 Cumulative 15.5 hours Start 2024.04.19 @ 21:56:09 End 2024.04.20 @ 21:42:49 Sessions 3 Manual Loads 0 Difficulty Rogue Special Mode None Game No. 22 Rogue 20 Adventurer 2 Explorer 0 Win Type - Total 0 Types 0/0/0/0/0/0/0/0/0 Lore% 19 Gallery% 17 Achievement% 18 Wizard Run 0 Options --------- Layout 1 ASCII 0 Keyboard 0 Movement Mouse Keybinds 0 Fullscreen 1 Font 24/Smallcaps Map View 50x40 Zoom Use 0% Tactical HUD 0 Map Filters NONE Filters NONE Steam 1 RUN: 5104c0fc-3ce2-4c04-babd-a15556e60b46